fUST/lending_fUST_20250618
["ID","MTS","AMOUNT","RATE_DAILY","PERIOD"]
[366342413,1750199438898,-460.0,0.00021917,6]
[366342414,1750199438907,-460.0,0.00021917,6]
[366342415,1750199438916,-460.0,0.00021917,6]
[366342416,1750199438926,-460.0,0.00021917,6]
[366342417,1750199438935,-584.74404832,0.00021917,6]
[366342418,1750199438944,-460.0,0.00021917,6]
[366342419,1750199438953,-548.11,0.00021917,6]
[366342420,1750199438963,-460.0,0.00021917,6]
[366342421,1750199438972,-440.0,0.00021917,6]
[366342422,1750199438982,-460.0,0.00021917,6]
[366342423,1750199438992,-460.0,0.00021917,6]
[366342424,1750199439002,-460.0,0.00021917,6]
[366342425,1750199439011,-460.27130883,0.00021917,6]
[366342426,1750199439020,-460.0,0.00021917,6]
[366342427,1750199439029,-216.31016594,0.00021917,6]
[366342428,1750199439038,-460.0,0.00021917,6]
[366342429,1750199439048,-460.0,0.00021917,6]
[366342430,1750199439057,-530.82,0.00021917,6]
[366342431,1750199439066,-460.0,0.00021917,6]
[366342432,1750199439076,-460.0,0.00021917,6]
[366342433,1750199439085,-433.09244519,0.00021917,6]
[366342434,1750199439094,-460.0,0.00021917,6]
[366342435,1750199439104,-440.0,0.00021917,6]
[366342436,1750199439113,-460.0,0.00021917,6]
[366342437,1750199439123,-460.0,0.00021917,6]
[366342438,1750199439133,-460.0,0.00021917,6]
[366342439,1750199439142,-460.0,0.00021917,6]
[366342440,1750199439152,-460.0,0.00021917,6]
[366342441,1750199439168,-430.0,0.00021917,6]
[366342442,1750199439177,-460.0,0.00021917,6]
[366342443,1750199439187,-461.84,0.00021917,6]
[366342444,1750199439196,-460.0,0.00021917,6]
[366342445,1750199439206,-460.0,0.00021917,6]
[366342446,1750199439216,-460.0,0.00021917,6]
[366342447,1750199439226,-460.0,0.00021917,6]
[366342448,1750199439236,-460.0,0.00021917,6]
[366342449,1750199439246,-460.0,0.00021917,6]
[366342450,1750199439256,-460.0,0.00021917,6]
[366342451,1750199439265,-460.0,0.00021917,6]
[366342452,1750199439275,-460.0,0.00021917,6]
[366342453,1750199439284,-599.07,0.00021917,6]
[366342454,1750199439293,-460.0,0.00021917,6]
[366342455,1750199439303,-460.0,0.00021917,6]
[366342456,1750199439312,-460.0,0.00021917,6]
[366342458,1750199439322,-460.0,0.00021917,6]
[366342460,1750199439331,-460.0,0.00021917,6]
[366342462,1750199439340,-460.0,0.00021917,6]
[366342463,1750199439350,-460.0,0.00021917,6]
[366342465,1750199439359,-1187.51,0.00021917,6]
[366342467,1750199439368,-460.0,0.00021917,6]
[366342469,1750199439377,-460.0,0.00021917,6]
[366342471,1750199439386,-470.79815768,0.00021917,6]
[366342473,1750199439396,-460.0,0.00021917,6]
[366342475,1750199439405,-460.0,0.00021917,6]
[366342477,1750199439414,-460.0,0.00021917,6]
[366342479,1750199439423,-460.0,0.00021917,6]
[366342481,1750199439432,-440.0,0.00021917,6]
[366342483,1750199439441,-460.0,0.00021917,6]
[366342485,1750199439451,-460.0,0.00021917,6]
[366342487,1750199439461,-460.0,0.00021917,6]
[366342489,1750199439470,-460.0,0.00021917,6]
[366342491,1750199439479,-460.0,0.00021917,6]
[366342493,1750199439489,-460.0,0.00021917,6]
[366342495,1750199439499,-570.66,0.00021917,6]
[366342496,1750199439508,-460.0,0.00021917,6]
[366342497,1750199439517,-400.0,0.00021917,6]
[366342498,1750199439527,-460.0,0.00021917,6]
[366342499,1750199439537,-460.0,0.00021917,6]
[366342500,1750199439547,-196.01715235,0.00021917,6]
[366342501,1750199439556,-516.39,0.00021917,6]
[366342502,1750199439566,-169.0,0.00022,2]
[366342503,1750199439576,-500.0,0.00022026,6]
[366342504,1750199439586,-460.0,0.00022027,6]
[366342505,1750199439596,-460.0,0.00022027,6]
[366342506,1750199439606,-360.0,0.00022027,6]
[366342507,1750199439616,-460.0,0.00022027,6]
[366342508,1750199439625,-461.99,0.00022027,6]
[366342509,1750199439635,-460.0,0.00022027,6]
[366342510,1750199439645,-460.0,0.00022027,6]
[366342512,1750199439654,-460.0,0.00022027,6]
[366342514,1750199439664,-506.77,0.00022027,6]
[366342516,1750199439673,-460.0,0.00022027,6]
[366342518,1750199439683,-460.0,0.00022027,6]
[366342520,1750199439693,-333.61321805,0.00022027,6]
[366342522,1750199439703,-460.0,0.00022027,6]
[366342524,1750199439713,-460.0,0.00022027,6]
[366342526,1750199439723,-460.0,0.00022027,6]
[366342528,1750199439732,-460.0,0.00022027,6]
[366342530,1750199439742,-460.0,0.00022027,6]
[366342532,1750199439752,-460.0,0.00022027,6]
[366342534,1750199439761,-460.0,0.00022027,6]
[366342535,1750199439770,-460.0,0.00022027,6]
[366342537,1750199439780,-548.11,0.00022027,6]
[366342539,1750199439790,-460.0,0.00022027,6]
[366342541,1750199439799,-460.0,0.00022027,6]
[366342543,1750199439809,-460.0,0.00022027,6]
[366342545,1750199439819,-460.0,0.00022027,6]
[366342547,1750199439828,-460.0,0.00022027,6]
[366342550,1750199439838,-460.0,0.00022027,6]
[366342551,1750199439848,-460.0,0.00022027,6]
[366342553,1750199439857,-532.08,0.00022027,6]
[366342555,1750199439867,-460.0,0.00022027,6]
[366342557,1750199439877,-460.0,0.00022027,6]
[366342559,1750199439886,-460.0,0.00022027,6]
[366342561,1750199439895,-460.0,0.00022027,6]
[366342563,1750199439905,-460.0,0.00022027,6]
[366342565,1750199439914,-460.0,0.00022027,6]
[366342567,1750199439923,-460.0,0.00022027,6]
[366342569,1750199439933,-460.0,0.00022027,6]
[366342571,1750199439942,-460.0,0.00022027,6]
[366342573,1750199439951,-460.0,0.00022027,6]
[366342575,1750199439961,-246.56495475,0.00022027,6]
[366342577,1750199439969,-154.06,0.00022027,6]
[366342578,1750199439978,-460.0,0.00022027,6]
[366342580,1750199439987,-460.0,0.00022027,6]
[366342582,1750199439998,-460.0,0.00022027,6]
[366342584,1750199440007,-460.0,0.00022027,6]
[366342586,1750199440016,-432.39,0.00022027,6]
[366342587,1750199440026,-1187.51,0.00022027,6]
[366342588,1750199440035,-460.0,0.00022027,6]
[366342589,1750199440049,-460.0,0.00022027,6]
[366342590,1750199440062,-460.0,0.00022027,6]
[366342591,1750199440072,-460.0,0.00022027,6]
[366342592,1750199440082,-460.0,0.00022027,6]
[366342593,1750199440092,-460.0,0.00022027,6]
[366342594,1750199440102,-460.0,0.00022027,6]
[366342595,1750199440111,-460.0,0.00022027,6]
[366342596,1750199440120,-460.0,0.00022027,6]
[366342597,1750199440129,-460.0,0.00022027,6]
[366342598,1750199440139,-460.0,0.00022027,6]
[366342599,1750199440148,-629.6496396,0.00022038,6]
[366342600,1750199440160,-525.36,0.00022136,6]
[366342601,1750199440169,-507.37376553,0.00022136,6]
[366342602,1750199440178,-458.29505541,0.00022136,6]
[366342603,1750199440187,-316.8,0.00022136,6]
[366342604,1750199440197,-460.0,0.00022136,6]
[366342605,1750199440207,-460.0,0.00022136,6]
[366342606,1750199440216,-548.11,0.00022136,6]
[366342607,1750199440225,-460.0,0.00022136,6]
[366342608,1750199440235,-460.0,0.00022136,6]
[366342609,1750199440246,-460.0,0.00022136,6]
[366342610,1750199440255,-460.0,0.00022136,6]
[366342611,1750199440264,-460.0,0.00022136,6]
[366342612,1750199440273,-460.0,0.00022136,6]
[366342613,1750199440283,-515.18,0.00022136,6]
[366342614,1750199440292,-460.0,0.00022136,6]
[366342615,1750199440302,-609.02,0.00022136,6]
[366342616,1750199440414,-460.0,0.00022136,6]
[366342617,1750199440430,-460.0,0.00022136,6]
[366342618,1750199440440,-460.0,0.00022136,6]
[366342619,1750199440449,-460.0,0.00022136,6]
[366342620,1750199440459,-460.0,0.00022136,6]
[366342621,1750199440469,-460.0,0.00022136,6]
[366342622,1750199440478,-460.0,0.00022136,6]
[366342623,1750199440488,-460.0,0.00022136,6]
[366342624,1750199440497,-1187.51,0.00022136,6]
[366342625,1750199440506,-458.33,0.00022136,6]
[366342626,1750199440516,-460.0,0.00022136,6]
[366342627,1750199440525,-377.48,0.00022136,6]
[366342628,1750199440535,-460.0,0.00022136,6]
[366342629,1750199440544,-460.0,0.00022136,6]
[366342630,1750199440553,-460.0,0.00022136,6]
[366342631,1750199440562,-460.0,0.00022136,6]
[366342632,1750199440572,-460.0,0.00022136,6]
[366342633,1750199440581,-460.0,0.00022136,6]
[366342634,1750199440591,-460.0,0.00022136,6]
[366342635,1750199440601,-460.0,0.00022136,6]
[366342636,1750199440610,-629.6496396,0.00022176,6]
[366342637,1750199440620,-500.0,0.00022204,2]
[366342638,1750199440630,-169.35438922,0.00022204,2]
[366342639,1750199440639,-500.0,0.00022235,2]
[366342641,1750199440649,-460.0,0.00022246,6]
[366342643,1750199440658,-460.0,0.00022246,6]
[366342645,1750199440667,-548.11,0.00022246,6]
[366342647,1750199440677,-460.0,0.00022246,6]
[366342649,1750199440686,-460.0,0.00022246,6]
[366342651,1750199440695,-460.0,0.00022246,6]
[366342653,1750199440704,-460.0,0.00022246,6]
[366342655,1750199440714,-466.92025096,0.00022246,6]
[366342657,1750199440723,-460.0,0.00022246,6]
[366342659,1750199440733,-460.0,0.00022246,6]
[366342661,1750199440742,-460.0,0.00022246,6]
[366342663,1750199440751,-512.1,0.00022246,6]
[366342665,1750199440760,-460.0,0.00022246,6]
[366342666,1750199440770,-375.98,0.00022246,6]
[366342668,1750199440779,-211.49,0.00022246,6]
[366342670,1750199440788,-460.0,0.00022246,6]
[366342672,1750199440798,-442.09,0.00022246,6]
[366342674,1750199440807,-460.0,0.00022246,6]
[366342675,1750199440817,-1187.51,0.00022246,6]
[366342676,1750199440826,-460.0,0.00022246,6]
[366342677,1750199440835,-460.0,0.00022246,6]
[366342678,1750199440844,-460.0,0.00022246,6]
[366342679,1750199440854,-460.0,0.00022246,6]
[366342680,1750199440862,-460.0,0.00022246,6]
[366342681,1750199440871,-373.52,0.00022246,6]
[366342683,1750199440880,-460.0,0.00022246,6]
[366342684,1750199440889,-460.0,0.00022246,6]
[366342685,1750199440898,-102.03328458,0.0002226,2]
[366342687,1750199440913,-397.96671542,0.0002226,2]
[366342688,1750199440923,-473.34638591,0.00022272,2]
[366342689,1750199440932,-582.43398316,0.00022303,2]
[366342690,1750199440941,-629.6496396,0.00022314,7]
[366342691,1750199440950,-460.0,0.00022356,6]
[366342692,1750199440959,-460.0,0.00022356,6]
[366342693,1750199440969,-548.11,0.00022356,6]
[366342694,1750199440978,-460.0,0.00022356,6]
[366342695,1750199440987,-460.0,0.00022356,6]
[366342696,1750199440996,-460.0,0.00022356,6]
[366342697,1750199441005,-460.0,0.00022356,6]
[366342698,1750199441014,-460.0,0.00022356,6]
[366342699,1750199441023,-460.0,0.00022356,6]
[366342700,1750199441032,-460.0,0.00022356,6]
[366342701,1750199441042,-460.0,0.00022356,6]
[366342702,1750199441052,-460.0,0.00022356,6]
[366342703,1750199441061,-460.0,0.00022356,6]
[366342704,1750199441071,-1187.51,0.00022356,6]
[366342705,1750199441080,-384.44,0.00022356,6]
[366342706,1750199441090,-460.0,0.00022356,6]
[366342707,1750199441099,-272.96,0.00022356,6]
[366342708,1750199441108,-460.0,0.00022356,6]
[366342709,1750199441118,-193.04,0.00022356,6]
[366342710,1750199441127,-460.0,0.00022356,6]
[366342711,1750199441137,-460.0,0.00022356,6]
[366342712,1750199441146,-562.7116654,0.00022384,2]
[366342713,1750199441158,-613.16,0.000224,7]
[366342714,1750199441169,-629.6496396,0.00022452,7]
[366342715,1750199441178,-460.0,0.00022465,6]
[366342716,1750199441187,-460.0,0.00022465,6]
[366342717,1750199441196,-548.11,0.00022465,6]
[366342718,1750199441205,-460.0,0.00022465,6]
[366342719,1750199441214,-460.0,0.00022465,6]
[366342720,1750199441224,-460.0,0.00022465,6]
[366342721,1750199441233,-460.0,0.00022465,6]
[366342722,1750199441243,-460.0,0.00022465,6]
[366342723,1750199441254,-460.0,0.00022465,6]
[366342724,1750199441263,-460.0,0.00022465,6]
[366342725,1750199441272,-460.0,0.00022465,6]
[366342726,1750199441281,-460.0,0.00022465,6]
[366342727,1750199441290,-460.0,0.00022465,6]
[366342728,1750199441299,-1187.51,0.00022465,6]
[366342729,1750199441309,-460.0,0.00022465,6]
[366342730,1750199441318,-460.0,0.00022465,6]
[366342731,1750199441327,-460.0,0.00022465,6]
[366342732,1750199441337,-460.0,0.00022465,6]
[366342733,1750199441346,-460.0,0.00022575,6]
[366342734,1750199441356,-460.0,0.00022575,6]
[366342735,1750199441365,-548.11,0.00022575,6]
[366342736,1750199441374,-460.0,0.00022575,6]
[366342737,1750199441384,-441.84,0.00022575,6]
[366342738,1750199441393,-460.0,0.00022575,6]
[366342739,1750199441402,-460.0,0.00022575,6]
[366342740,1750199441411,-460.0,0.00022575,6]
[366342741,1750199441421,-460.0,0.00022575,6]
[366342742,1750199441430,-460.0,0.00022575,6]
[366342743,1750199441439,-460.0,0.00022575,6]
[366342744,1750199441451,-460.0,0.00022575,6]
[366342745,1750199441461,-491.98,0.00022575,6]
[366342746,1750199441470,-1187.51,0.00022575,6]
[366342747,1750199441479,-171.95,0.00022575,6]
[366342748,1750199441489,-460.0,0.00022575,6]
[366342749,1750199441498,-460.0,0.00022575,6]
[366342750,1750199441507,-460.0,0.00022575,6]
[366342751,1750199441517,-629.6496396,0.0002259,7]
[366342752,1750199441526,-460.0,0.00022684,6]
[366342753,1750199441536,-460.0,0.00022684,6]
[366342754,1750199441545,-548.11,0.00022684,6]
[366342755,1750199441555,-399.07,0.00022684,6]
[366342756,1750199441564,-460.0,0.00022684,6]
[366342757,1750199441573,-460.0,0.00022684,6]
[366342758,1750199441583,-460.0,0.00022684,6]
[366342759,1750199441593,-460.0,0.00022684,6]
[366342760,1750199441602,-460.0,0.00022684,6]
[366342761,1750199441611,-460.0,0.00022684,6]
[366342762,1750199441621,-460.0,0.00022684,6]
[366342763,1750199441631,-1187.51,0.00022684,6]
[366342764,1750199441641,-460.0,0.00022684,6]
[366342765,1750199441650,-460.0,0.00022684,6]
[366342766,1750199441660,-460.0,0.00022684,6]
[366342767,1750199441670,-629.6496396,0.00022728,7]
[366342768,1750199441679,-1000.0,0.00022783,2]
[366342769,1750199441689,-460.0,0.00022794,6]
[366342770,1750199441698,-460.0,0.00022794,6]
[366342771,1750199441707,-548.11,0.00022794,6]
[366342772,1750199441717,-460.0,0.00022794,6]
[366342773,1750199441727,-460.0,0.00022794,6]
[366342774,1750199441737,-460.0,0.00022794,6]
[366342775,1750199441746,-460.0,0.00022794,6]
[366342776,1750199441755,-319.19,0.00022794,6]
[366342777,1750199441764,-460.0,0.00022794,6]
[366342778,1750199441774,-527.07,0.00022794,6]
[366342779,1750199441783,-1187.51,0.00022794,6]
[366342780,1750199441793,-460.0,0.00022794,6]
[366342781,1750199441802,-460.0,0.00022794,6]
[366342782,1750199441811,-460.0,0.00022794,6]
[366342783,1750199441820,-629.6496396,0.00022866,8]
[366342784,1750199441830,-460.0,0.00022904,6]
[366342785,1750199441839,-460.0,0.00022904,6]
[366342786,1750199441849,-548.11,0.00022904,6]
[366342787,1750199441858,-366.38,0.00022904,6]
[366342788,1750199441868,-460.0,0.00022904,6]
[366342789,1750199441879,-460.0,0.00022904,6]
[366342790,1750199441888,-460.0,0.00022904,6]
[366342791,1750199441899,-460.0,0.00022904,6]
[366342792,1750199441908,-1187.51,0.00022904,6]
[366342793,1750199441917,-460.0,0.00022904,6]
[366342794,1750199441927,-460.0,0.00022904,6]
[366342795,1750199441936,-460.0,0.00022904,6]
[366342796,1750199441946,-629.6496396,0.00023003,8]
[366342797,1750199441955,-460.0,0.00023013,6]
[366342798,1750199441965,-548.11,0.00023013,6]
[366342799,1750199441974,-460.0,0.00023013,6]
[366342800,1750199441983,-460.0,0.00023013,6]
[366342801,1750199441992,-460.0,0.00023013,6]
[366342802,1750199442001,-460.0,0.00023013,6]
[366342803,1750199442010,-460.0,0.00023013,6]
[366342804,1750199442019,-1187.51,0.00023013,6]
[366342805,1750199442028,-460.0,0.00023013,6]
[366342806,1750199442037,-460.0,0.00023013,6]
[366342807,1750199442047,-460.0,0.00023013,6]
[366342808,1750199442056,-169.0,0.00023014,7]
[366342809,1750199442065,-745.0,0.00023081,2]
[366342810,1750199442074,-460.0,0.00023123,6]
[366342811,1750199442083,-548.11,0.00023123,6]
[366342812,1750199442092,-460.0,0.00023123,6]
[366342813,1750199442103,-460.0,0.00023123,6]
[366342814,1750199442112,-326.76,0.00023123,6]
[366342815,1750199442121,-460.0,0.00023123,6]
[366342816,1750199442130,-460.0,0.00023123,6]
[366342817,1750199442140,-1187.51,0.00023123,6]
[366342818,1750199442149,-460.0,0.00023123,6]
[366342819,1750199442161,-460.0,0.00023123,6]
[366342820,1750199442170,-460.0,0.00023123,6]
[366342821,1750199442180,-629.6496396,0.00023141,8]
[366342822,1750199442191,-500.0,0.000232,2]
[366342823,1750199442201,-460.0,0.00023232,6]
[366342824,1750199442211,-447.38150689,0.00023232,6]
[366342825,1750199442220,-548.11,0.00023232,6]
[366342826,1750199442229,-460.0,0.00023232,6]
[366342827,1750199442241,-532.96,0.00023232,6]
[366342828,1750199442251,-460.0,0.00023232,6]
[366342829,1750199442261,-1187.51,0.00023232,6]
[366342830,1750199442270,-460.0,0.00023232,6]
[366342831,1750199442279,-460.0,0.00023232,6]
[366342832,1750199442288,-460.0,0.00023232,6]
[366342833,1750199442298,-365.4795681,0.0002326,2]
[366342834,1750199442306,-365.4795681,0.0002326,2]
[366342835,1750199442316,-177.0,0.00023271,2]
[366342836,1750199442325,-629.6496396,0.00023279,8]
[366342837,1750199442335,-1500.0,0.00023331,2]
[366342838,1750199442344,-554.64970069,0.00023342,6]
[366342839,1750199442354,-548.11,0.00023342,6]
[366342840,1750199442364,-460.0,0.00023342,6]
[366342841,1750199442374,-482.81,0.00023342,6]
[366342842,1750199442383,-1187.51,0.00023342,6]
[366342843,1750199442393,-460.0,0.00023342,6]
[366342844,1750199442402,-362.37215602,0.00023342,6]
[366342845,1750199442413,-460.0,0.00023342,6]
[366342846,1750199442423,-500.0,0.00023349,2]
[366342847,1750199442435,-294.43773558,0.00023349,2]
[366342848,1750199442444,-55699.78309692,0.0002335,2]
[366342849,1750199442454,-629.6496396,0.00023417,9]
[366342850,1750199442463,-500.0,0.00023451,2]
[366342851,1750199442473,-160.0,0.00023451,2]
[366342852,1750199442483,-548.11,0.00023452,6]
[366342853,1750199442492,-460.0,0.00023452,6]
[366342854,1750199442502,-1187.51,0.00023452,6]
[366342855,1750199442512,-460.0,0.00023452,6]
[366342856,1750199442522,-460.0,0.00023452,6]
[366342857,1750199442531,-165.0,0.00023477,6]
[366342858,1750199442541,-38804.20655,0.00023499,2]
[366342859,1750199442550,-29387.19787004,0.000235,7]
[366342860,1750199442559,-271.46898409,0.00023524,2]
[366342861,1750199442569,-153.0,0.00023534,2]
[366342862,1750199442579,-176.2005054,0.00023534,2]
[366342863,1750199442589,-459.1516927,0.00023534,2]
[366342864,1750199442598,-573.4653004,0.00023534,2]
[366342865,1750199442608,-153.0,0.00023534,2]
[366342866,1750199442617,-629.6496396,0.00023555,9]
[366342867,1750199442627,-491.49,0.00023559,6]
[366342868,1750199442636,-460.0,0.00023559,6]
[366342869,1750199442646,-460.0,0.00023559,6]
[366342870,1750199442656,-200.0,0.00023561,6]
[366342871,1750199442666,-548.11,0.00023561,6]
[366342872,1750199442676,-460.0,0.00023561,6]
[366342873,1750199442685,-1187.51,0.00023561,6]
[366342874,1750199442695,-460.0,0.00023561,6]
[366342875,1750199442705,-460.0,0.00023561,6]
[366342876,1750199442715,-156.0289342,0.00023562,2]
[366342877,1750199442724,-424.62582665,0.00023563,2]
[366342878,1750199442733,-160.0,0.00023563,2]
[366342879,1750199442743,-213.39869953,0.00023563,2]
[366342880,1750199442753,-229.94211981,0.00023563,2]
[366342882,1750199442763,-835.82910252,0.00023563,2]
[366342883,1750199442772,-160.0,0.00023563,2]
[366342884,1750199442782,-500.0,0.00023573,2]
[366342885,1750199442791,-500.0,0.00023573,2]
[366342886,1750199442801,-500.0,0.00023573,2]
[366342887,1750199442810,-500.0,0.00023573,2]
[366342888,1750199442820,-500.0,0.00023573,2]
[366342889,1750199442830,-111100.8763145,0.00023597,2]
[366342890,1750199442840,-1241.06525426,0.00023601,2]
[366342891,1750199442850,-1241.06525426,0.00023614,2]
[366342892,1750199442860,-165.0,0.0002363,6]
[366342893,1750199442869,-1241.06525426,0.00023634,2]
[366342894,1750199442879,-491.49,0.00023669,6]
[366342895,1750199442888,-460.0,0.00023669,6]
[366342896,1750199442898,-548.11,0.00023671,6]
[366342897,1750199442908,-475.12,0.00023671,6]
[366342899,1750199442917,-1187.51,0.00023671,6]
[366342901,1750199442926,-460.0,0.00023671,6]
[366342903,1750199442936,-460.0,0.00023671,6]
[366342905,1750199442945,-1241.06525426,0.00023671,2]
[366342906,1750199442955,-629.6496396,0.00023693,9]
[366342907,1750199442966,-25000.0,0.00023727,2]
[366342908,1750199442975,-1042.82386827,0.00023727,2]
[366342909,1750199442985,-207.4,0.00023727,2]
[366342910,1750199442995,-500.0,0.00023773,2]
[366342911,1750199443004,-500.0,0.00023773,2]
[366342912,1750199443014,-500.0,0.00023773,2]
[366342913,1750199443023,-500.0,0.00023773,2]
[366342914,1750199443033,-500.0,0.00023773,2]
[366342915,1750199443042,-500.0,0.00023773,2]
[366342916,1750199443052,-500.0,0.00023773,2]
[366342917,1750199443061,-500.0,0.00023773,2]
[366342918,1750199443070,-500.0,0.00023773,2]
[366342919,1750199443080,-600.0,0.00023773,2]
[366342920,1750199443089,-500.0,0.00023773,2]
[366342921,1750199443099,-500.0,0.00023773,2]
[366342922,1750199443108,-500.0,0.00023773,2]
[366342923,1750199443117,-315.78308288,0.00023773,2]
[366342924,1750199443126,-500.0,0.00023773,2]
[366342925,1750199443135,-177.0,0.00023774,2]
[366342926,1750199443145,-491.49,0.00023778,6]
[366342927,1750199443154,-408.33,0.00023778,6]
[366342928,1750199443169,-548.11,0.0002378,6]
[366342929,1750199443178,-1187.51,0.0002378,6]
[366342930,1750199443188,-460.0,0.0002378,6]
[366342931,1750199443197,-460.0,0.0002378,6]
[366342933,1750199443210,-165.0,0.00023784,6]
[366342935,1750199443229,-613.16,0.000238,7]
[366342937,1750199443239,-51662.92674891,0.000238,2]
[366342939,1750199443249,-142773.76604336,0.000238,3]
[366342941,1750199443259,-229.94211981,0.000238,3]
[366342943,1750199443268,-420.0,0.00023815,2]
[366342946,1750199443278,-500.0,0.0002383,2]
[366342949,1750199443287,-629.6496396,0.00023831,10]
[366342963,1750199443297,-156.0289342,0.00023863,2]
[366342965,1750199443411,-500.0,0.00023873,2]
[366342967,1750199443421,-500.0,0.00023873,2]
[366342969,1750199443430,-500.0,0.00023873,2]
[366342971,1750199443440,-566.87980216,0.00023873,2]
[366342973,1750199443449,-500.0,0.00023873,2]
[366342975,1750199443458,-202.18515436,0.00023873,2]
[366342977,1750199443468,-326.80559789,0.00023873,2]
[366342979,1750199443477,-500.0,0.00023873,2]
[366342981,1750199443486,-500.0,0.00023873,2]
[366342983,1750199443496,-500.0,0.00023873,2]
[366342985,1750199443506,-500.0,0.00023873,2]
[366342987,1750199443516,-500.0,0.00023873,2]
[366342989,1750199443525,-500.0,0.00023873,2]
[366342991,1750199443534,-500.0,0.00023873,2]
[366342993,1750199443543,-500.0,0.00023879,2]
[366342995,1750199443552,-500.0,0.0002388,2]
[366342997,1750199443565,-491.49,0.00023888,6]
[366342999,1750199443574,-132114.53832464,0.0002389,2]
[366343001,1750199443584,-548.11,0.0002389,6]
[366343003,1750199443593,-1187.51,0.0002389,6]
[366343005,1750199443603,-460.0,0.0002389,6]
[366343007,1750199443612,-460.0,0.0002389,6]
[366343009,1750199443622,-177.0,0.0002389,2]
[366343011,1750199443631,-165.0,0.00023938,7]
[366343012,1750199443641,-629.6496396,0.00023969,10]
[366343015,1750199443651,-491.49,0.00023997,6]
[366343016,1750199443660,-158.49,0.00024,2]
[366343018,1750199443669,-548.11,0.00024,6]
[366343020,1750199443679,-331.35063543,0.00024,14]
[366343022,1750199443689,-1187.51,0.00024,6]
[366343024,1750199443700,-229.94211981,0.00024,7]
[366343026,1750199443710,-460.0,0.00024,6]
[366343028,1750199443720,-460.0,0.00024,6]
[366343030,1750199443730,-165.0,0.00024091,7]
[366343033,1750199443740,-629.6496396,0.00024107,10]
[366343034,1750199443749,-491.49,0.00024107,6]
[366343036,1750199443759,-548.11,0.00024109,6]
[366343038,1750199443768,-1187.51,0.00024109,6]
[366343040,1750199443778,-460.0,0.00024109,6]
[366343042,1750199443788,-460.0,0.00024109,6]
[366343044,1750199443797,-1000.0,0.00024121,2]
[366343046,1750199443807,-1002.17264723,0.00024121,2]
[366343048,1750199443817,-1085.07903443,0.00024121,2]
[366343050,1750199443826,-1000.0,0.00024121,2]
[366343052,1750199443835,-1000.0,0.00024121,2]
[366343054,1750199443844,-500.0,0.0002416,2]
[366343056,1750199443853,-1093.89,0.0002416,2]
[366343058,1750199443863,-156.0289342,0.00024164,2]
[366343060,1750199443872,-156.85153497,0.00024164,2]
[366343062,1750199443881,-1105.95,0.000242,2]
[366343064,1750199443891,-491.49,0.00024216,6]
[366343066,1750199443900,-548.11,0.00024219,6]